[Event "*** SCC Grand Prix: Titled Tuesday Blitz"]
[Site "Chess.com"]
[Date "2020.10.06"]
[Round "9"]
[White "Klavdia_Nik"]
[Black "AntonovaNadezhda"]
[Result "0-1"]
[WhiteElo "2127"]
[BlackElo "2080"]
[TimeControl "180+1"]
[EndTime "11:46:43 PDT"]
[Termination "AntonovaNadezhda won on time"]

1. Nf3 {[%clk 0:03:00.9]} 1... Nf6 {[%clk 0:02:57.4]} 2. c4 {[%clk 0:02:58.2]}
2... g6 {[%clk 0:02:57.1]} 3. b3 {[%clk 0:02:57.4]} 3... Bg7 {[%clk 0:02:57.6]}
4. Bb2 {[%clk 0:02:56.5]} 4... d6 {[%clk 0:02:57.3]} 5. d4 {[%clk 0:02:56.2]}
5... O-O {[%clk 0:02:56.3]} 6. d5 {[%clk 0:02:49.4]} 6... c6 {[%clk 0:02:52.3]}
7. dxc6 {[%clk 0:02:40.3]} 7... bxc6 {[%clk 0:02:46.5]} 8. g3 {[%clk 0:02:40.6]}
8... Bb7 {[%clk 0:02:45.5]} 9. Bg2 {[%clk 0:02:40.2]} 9... d5 {[%clk 0:02:45.4]}
10. Nbd2 {[%clk 0:02:33.9]} 10... Nbd7 {[%clk 0:02:44.8]} 11. O-O {[%clk
0:02:33.3]} 11... Re8 {[%clk 0:02:40.6]} 12. Ne5 {[%clk 0:02:10.7]} 12... Qc7
{[%clk 0:02:32.1]} 13. Nxd7 {[%clk 0:01:59.1]} 13... Qxd7 {[%clk 0:02:30.5]} 14.
Nf3 {[%clk 0:01:43.7]} 14... Rad8 {[%clk 0:02:11.6]} 15. Qc2 {[%clk 0:01:40.1]}
15... Nh5 {[%clk 0:01:48.1]} 16. Bxg7 {[%clk 0:01:36.4]} 16... Nxg7 {[%clk
0:01:47.2]} 17. Rad1 {[%clk 0:01:29.2]} 17... e5 {[%clk 0:01:45.1]} 18. e3
{[%clk 0:01:21]} 18... Qe7 {[%clk 0:01:32.5]} 19. c5 {[%clk 0:01:12]} 19... Bc8
{[%clk 0:01:29.6]} 20. e4 {[%clk 0:00:58.7]} 20... d4 {[%clk 0:01:27.4]} 21. Ne1
{[%clk 0:00:54.6]} 21... Ba6 {[%clk 0:01:15.6]} 22. Nd3 {[%clk 0:00:49]} 22...
Ne6 {[%clk 0:01:10.6]} 23. b4 {[%clk 0:00:46.3]} 23... f6 {[%clk 0:00:34]} 24.
Rfe1 {[%clk 0:00:44.4]} 24... Rb8 {[%clk 0:00:27.9]} 25. a3 {[%clk 0:00:43.6]}
25... Bb5 {[%clk 0:00:22.7]} 26. Nb2 {[%clk 0:00:37.1]} 26... Kg7 {[%clk
0:00:18.9]} 27. Nc4 {[%clk 0:00:25.5]} 27... Bxc4 {[%clk 0:00:18.4]} 28. Qxc4
{[%clk 0:00:25.8]} 28... Rb7 {[%clk 0:00:17]} 29. Bh3 {[%clk 0:00:20.7]} 29...
Nc7 {[%clk 0:00:14.5]} 30. f4 {[%clk 0:00:13.9]} 30... Reb8 {[%clk 0:00:13]} 31.
fxe5 {[%clk 0:00:11.6]} 31... Qxe5 {[%clk 0:00:10.7]} 32. Qxd4 {[%clk 0:00:10]}
32... a5 {[%clk 0:00:09.5]} 33. Qxe5 {[%clk 0:00:07.8]} 33... fxe5 {[%clk
0:00:08.9]} 34. Rd7+ {[%clk 0:00:08.4]} 34... Kh6 {[%clk 0:00:07.9]} 35. g4
{[%clk 0:00:04.1]} 35... axb4 {[%clk 0:00:07.4]} 36. Bg2 {[%clk 0:00:02.9]}
36... b3 {[%clk 0:00:06.2]} 37. h4 {[%clk 0:00:02.9]} 37... g5 {[%clk
0:00:03.8]} 0-1

[Event "*** SCC Grand Prix: Titled Tuesday Blitz"]
[Site "Chess.com"]
[Date "2020.10.06"]
[Round "9"]
[White "FMKonstantin_Twitch"]
[Black "Das_Virus_2020"]
[Result "1-0"]
[WhiteElo "2543"]
[BlackElo "2393"]
[TimeControl "180+1"]
[EndTime "11:46:44 PDT"]
[Termination "FMKonstantin_Twitch won by resignation"]

1. Nf3 {[%clk 0:03:00.9]} 1... Nf6 {[%clk 0:02:57.8]} 2. g3 {[%clk 0:03:01.8]}
2... b6 {[%clk 0:02:57]} 3. Bg2 {[%clk 0:03:02.7]} 3... Bb7 {[%clk 0:02:57.5]}
4. O-O {[%clk 0:03:03.4]} 4... c5 {[%clk 0:02:55.6]} 5. d3 {[%clk 0:03:03.3]}
5... d6 {[%clk 0:02:49.4]} 6. c4 {[%clk 0:03:03.3]} 6... Nbd7 {[%clk 0:02:48.7]}
7. Nc3 {[%clk 0:03:03.7]} 7... e6 {[%clk 0:02:46.6]} 8. a3 {[%clk 0:03:03.9]}
8... Be7 {[%clk 0:02:43.8]} 9. Rb1 {[%clk 0:03:04.3]} 9... a6 {[%clk 0:02:39.6]}
10. b4 {[%clk 0:03:04.4]} 10... Qc7 {[%clk 0:02:39.7]} 11. Bd2 {[%clk
0:03:03.3]} 11... O-O {[%clk 0:02:39.3]} 12. Qb3 {[%clk 0:03:03.2]} 12... Rab8
{[%clk 0:02:37.3]} 13. Rfc1 {[%clk 0:03:00.9]} 13... Rfe8 {[%clk 0:02:31.1]} 14.
Qd1 {[%clk 0:02:49.5]} 14... Bf8 {[%clk 0:02:29.8]} 15. e3 {[%clk 0:02:47.3]}
15... Rbc8 {[%clk 0:02:18]} 16. Qe2 {[%clk 0:02:45.3]} 16... g6 {[%clk
0:01:54.1]} 17. Ne1 {[%clk 0:02:36.4]} 17... Bxg2 {[%clk 0:01:49.4]} 18. Nxg2
{[%clk 0:02:37.3]} 18... Bg7 {[%clk 0:01:48.7]} 19. h4 {[%clk 0:02:32.2]} 19...
h5 {[%clk 0:01:47.9]} 20. Nf4 {[%clk 0:02:31.7]} 20... Rb8 {[%clk 0:01:44.9]}
21. Kg2 {[%clk 0:02:20.4]} 21... Ne5 {[%clk 0:01:27.4]} 22. f3 {[%clk
0:01:57.6]} 22... Rec8 {[%clk 0:01:20.9]} 23. e4 {[%clk 0:01:55.2]} 23... Nc6
{[%clk 0:01:16.6]} 24. Be3 {[%clk 0:01:49.6]} 24... Nd7 {[%clk 0:01:14.5]} 25.
b5 {[%clk 0:01:49.5]} 25... Nd4 {[%clk 0:01:10.9]} 26. Bxd4 {[%clk 0:01:49.3]}
26... cxd4 {[%clk 0:01:11]} 27. Na2 {[%clk 0:01:46.7]} 27... a5 {[%clk
0:01:10.9]} 28. Rc2 {[%clk 0:01:40.2]} 28... Nc5 {[%clk 0:01:10.8]} 29. Nc1
{[%clk 0:01:39.9]} 29... Qe7 {[%clk 0:01:09.1]} 30. Qd1 {[%clk 0:01:39.7]} 30...
Bh6 {[%clk 0:01:05.9]} 31. Nce2 {[%clk 0:01:39.5]} 31... Qf6 {[%clk 0:00:59.6]}
32. Qh1 {[%clk 0:01:31.3]} 32... Rd8 {[%clk 0:00:53.8]} 33. Rd1 {[%clk
0:01:29.5]} 33... Rbc8 {[%clk 0:00:50.3]} 34. Qh2 {[%clk 0:01:28.4]} 34... Nd7
{[%clk 0:00:48]} 35. g4 {[%clk 0:01:23.2]} 35... hxg4 {[%clk 0:00:21.8]} 36.
fxg4 {[%clk 0:01:22.4]} 36... Qe5 {[%clk 0:00:20.4]} 37. Rf1 {[%clk 0:01:18.3]}
37... Nc5 {[%clk 0:00:12.9]} 38. Qh3 {[%clk 0:01:15.2]} 38... Na4 {[%clk
0:00:08.7]} 39. g5 {[%clk 0:00:55.6]} 39... Bg7 {[%clk 0:00:07.9]} 40. Qg4
{[%clk 0:00:55.7]} 40... Rc5 {[%clk 0:00:06.3]} 41. Ng3 {[%clk 0:00:54.3]} 41...
d5 {[%clk 0:00:05.7]} 42. exd5 {[%clk 0:00:50.7]} 42... exd5 {[%clk 0:00:05.2]}
43. Re2 {[%clk 0:00:50.9]} 43... Qd6 {[%clk 0:00:02.6]} 44. Nxd5 {[%clk
0:00:42.2]} 44... Rxd5 {[%clk 0:00:03]} 45. cxd5 {[%clk 0:00:43.1]} 45... Qxd5+
{[%clk 0:00:03.9]} 46. Ne4 {[%clk 0:00:42.2]} 46... Nc3 {[%clk 0:00:03.9]} 47.
Ref2 {[%clk 0:00:42.6]} 47... Nxe4 {[%clk 0:00:03.6]} 48. dxe4 {[%clk
0:00:42.9]} 48... Qxb5 {[%clk 0:00:02.3]} 49. Rxf7 {[%clk 0:00:41]} 49... d3
{[%clk 0:00:02.8]} 50. Qe6 {[%clk 0:00:40.3]} 50... Qb2+ {[%clk 0:00:02.2]} 51.
R7f2+ {[%clk 0:00:37.4]} 51... Kh7 {[%clk 0:00:01.1]} 52. Rxb2 {[%clk
0:00:37.1]} 52... Kh8 {[%clk 0:00:02]} 1-0

[Event "*** SCC Grand Prix: Titled Tuesday Blitz"]
[Site "Chess.com"]
[Date "2020.10.06"]
[Round "9"]
[White "ferch1ni"]
[Black "Caterpiller35"]
[Result "0-1"]
[WhiteElo "2378"]
[BlackElo "2499"]
[TimeControl "180+1"]
[EndTime "11:46:44 PDT"]
[Termination "Caterpiller35 won by checkmate"]

1. e4 {[%clk 0:02:56]} 1... c5 {[%clk 0:03:00]} 2. Nf3 {[%clk 0:02:55.2]} 2...
Nc6 {[%clk 0:03:00.5]} 3. d4 {[%clk 0:02:55.7]} 3... cxd4 {[%clk 0:03:01.4]} 4.
Nxd4 {[%clk 0:02:56.6]} 4... e5 {[%clk 0:03:02.2]} 5. Nb5 {[%clk 0:02:56.2]}
5... d6 {[%clk 0:03:02.5]} 6. c4 {[%clk 0:02:56.5]} 6... Be7 {[%clk 0:03:02.6]}
7. Be2 {[%clk 0:02:56.2]} 7... Be6 {[%clk 0:03:02.6]} 8. Be3 {[%clk 0:02:55]}
8... a6 {[%clk 0:02:54]} 9. N5c3 {[%clk 0:02:54.7]} 9... Bg5 {[%clk 0:02:52]}
10. Bxg5 {[%clk 0:02:49.1]} 10... Qxg5 {[%clk 0:02:52.9]} 11. O-O {[%clk
0:02:49.3]} 11... Nf6 {[%clk 0:02:50.5]} 12. Qxd6 {[%clk 0:02:45.1]} 12... Bh3
{[%clk 0:02:21]} 13. g3 {[%clk 0:02:28.7]} 13... Rd8 {[%clk 0:02:14.9]} 14. Qc5
{[%clk 0:02:24.9]} 14... Bxf1 {[%clk 0:02:14.4]} 15. Bxf1 {[%clk 0:02:24.8]}
15... h5 {[%clk 0:02:12.3]} 16. h4 {[%clk 0:02:23.8]} 16... Qc1 {[%clk
0:02:02.2]} 17. a4 {[%clk 0:02:11.7]} 17... Qxb2 {[%clk 0:01:43.4]} 18. Ra2
{[%clk 0:02:11.9]} 18... Qb4 {[%clk 0:01:43.1]} 19. Qe3 {[%clk 0:02:11.9]} 19...
O-O {[%clk 0:01:39.4]} 20. Qc1 {[%clk 0:02:03.5]} 20... Nd4 {[%clk 0:01:35.3]}
21. Rb2 {[%clk 0:02:03.5]} 21... Qe7 {[%clk 0:01:33.7]} 22. Kg2 {[%clk
0:01:57.9]} 22... Ng4 {[%clk 0:01:26.2]} 23. f3 {[%clk 0:01:53.6]} 23... Nf6
{[%clk 0:01:16.9]} 24. Qg5 {[%clk 0:01:53.3]} 24... Rfe8 {[%clk 0:01:03.3]} 25.
Rf2 {[%clk 0:01:18.7]} 25... Qb4 {[%clk 0:00:56.7]} 26. g4 {[%clk 0:00:50]}
26... Qd6 {[%clk 0:00:43.9]} 27. Kh1 {[%clk 0:00:42.2]} 27... Ne6 {[%clk
0:00:43.5]} 28. Qc1 {[%clk 0:00:38.9]} 28... Nf4 {[%clk 0:00:42.5]} 29. g5
{[%clk 0:00:37.2]} 29... Nd7 {[%clk 0:00:39.5]} 30. Nd5 {[%clk 0:00:37.4]} 30...
Nxd5 {[%clk 0:00:38.6]} 31. exd5 {[%clk 0:00:36.7]} 31... e4 {[%clk 0:00:38.4]}
32. fxe4 {[%clk 0:00:26.1]} 32... Rxe4 {[%clk 0:00:38.3]} 33. Rh2 {[%clk
0:00:26]} 33... Rde8 {[%clk 0:00:36]} 34. Nd2 {[%clk 0:00:25.9]} 34... Re1
{[%clk 0:00:35.7]} 35. Qc3 {[%clk 0:00:25.5]} 35... Qf4 {[%clk 0:00:34.6]} 36.
Kg1 {[%clk 0:00:23.6]} 36... R8e3 {[%clk 0:00:33.1]} 37. Qb2 {[%clk 0:00:13.7]}
37... Rg3+ {[%clk 0:00:32.3]} 38. Rg2 {[%clk 0:00:13.2]} 38... Rxg2+ {[%clk
0:00:31]} 39. Kxg2 {[%clk 0:00:14.1]} 39... Qg4+ {[%clk 0:00:29.4]} 40. Kf2
{[%clk 0:00:13.2]} 40... Qxh4+ {[%clk 0:00:29.6]} 41. Kg1 {[%clk 0:00:13.6]}
41... Qg3+ {[%clk 0:00:29]} 42. Kh1 {[%clk 0:00:14]} 42... Qf2 {[%clk
0:00:28.2]} 43. Qc3 {[%clk 0:00:09.4]} 43... Re3 {[%clk 0:00:26.4]} 44. Qc1
{[%clk 0:00:03.3]} 44... Rg3 {[%clk 0:00:25.5]} 45. Ne4 {[%clk 0:00:03]} 45...
Rg1# {[%clk 0:00:24.9]} 0-1

[Event "*** SCC Grand Prix: Titled Tuesday Blitz"]
[Site "Chess.com"]
[Date "2020.10.06"]
[Round "9"]
[White "Matols"]
[Black "WiktoriaPOL"]
[Result "1-0"]
[WhiteElo "2255"]
[BlackElo "2058"]
[TimeControl "180+1"]
[EndTime "11:46:48 PDT"]
[Termination "Matols won by checkmate"]

1. d4 {[%clk 0:03:00.9]} 1... Nf6 {[%clk 0:02:59.4]} 2. c4 {[%clk 0:03:00]} 2...
g6 {[%clk 0:02:59.4]} 3. g3 {[%clk 0:02:59.7]} 3... Bg7 {[%clk 0:02:59.4]} 4.
Bg2 {[%clk 0:02:59.7]} 4... O-O {[%clk 0:02:59.6]} 5. Nc3 {[%clk 0:02:58.3]}
5... d6 {[%clk 0:02:59.6]} 6. Nf3 {[%clk 0:02:57.9]} 6... Nc6 {[%clk 0:02:55.2]}
7. O-O {[%clk 0:02:56.6]} 7... e5 {[%clk 0:02:53.8]} 8. d5 {[%clk 0:02:54.3]}
8... Ne7 {[%clk 0:02:53.3]} 9. e4 {[%clk 0:02:53.5]} 9... Nd7 {[%clk 0:02:53.1]}
10. Ne1 {[%clk 0:02:52.3]} 10... f5 {[%clk 0:02:50.8]} 11. Nd3 {[%clk
0:02:47.2]} 11... Nf6 {[%clk 0:02:44.1]} 12. b4 {[%clk 0:02:33.5]} 12... fxe4
{[%clk 0:02:25.2]} 13. Nxe4 {[%clk 0:02:32]} 13... Nxe4 {[%clk 0:02:24.4]} 14.
Bxe4 {[%clk 0:02:31.4]} 14... Bf5 {[%clk 0:02:23.3]} 15. Qe2 {[%clk 0:02:24.7]}
15... Bxe4 {[%clk 0:02:16.8]} 16. Qxe4 {[%clk 0:02:23.9]} 16... Qd7 {[%clk
0:02:13.4]} 17. Bb2 {[%clk 0:02:16.9]} 17... Rf5 {[%clk 0:01:58.6]} 18. c5
{[%clk 0:02:10.9]} 18... Rh5 {[%clk 0:01:51.7]} 19. Rac1 {[%clk 0:01:59.6]}
19... Qh3 {[%clk 0:01:38.3]} 20. Qg2 {[%clk 0:01:59]} 20... Qxg2+ {[%clk
0:01:22.7]} 21. Kxg2 {[%clk 0:01:57.8]} 21... Nxd5 {[%clk 0:01:22.3]} 22. g4
{[%clk 0:01:51]} 22... Rg5 {[%clk 0:01:19.9]} 23. Kg3 {[%clk 0:01:45.9]} 23...
Nf4 {[%clk 0:01:18.5]} 24. Nxf4 {[%clk 0:01:26]} 24... exf4+ {[%clk 0:01:15.8]}
25. Kxf4 {[%clk 0:01:26.1]} 25... Bxb2 {[%clk 0:00:44.6]} 26. Kxg5 {[%clk
0:01:24.8]} 26... Bxc1+ {[%clk 0:00:44.6]} 27. Rxc1 {[%clk 0:01:24.8]} 27...
dxc5 {[%clk 0:00:41.8]} 28. Rxc5 {[%clk 0:01:22.7]} 28... c6 {[%clk 0:00:39.9]}
29. Re5 {[%clk 0:01:21.5]} 29... Kf7 {[%clk 0:00:35]} 30. f4 {[%clk 0:01:18.4]}
30... Rd8 {[%clk 0:00:32.2]} 31. Re2 {[%clk 0:01:15]} 31... Rd4 {[%clk
0:00:31.2]} 32. Rb2 {[%clk 0:00:59.4]} 32... Kg7 {[%clk 0:00:22.9]} 33. Rf2
{[%clk 0:00:38.5]} 33... h6+ {[%clk 0:00:20.5]} 34. Kh4 {[%clk 0:00:37.5]} 34...
Rxb4 {[%clk 0:00:20.7]} 35. f5 {[%clk 0:00:36.7]} 35... g5+ {[%clk 0:00:16.9]}
36. Kh5 {[%clk 0:00:35.1]} 36... Kf6 {[%clk 0:00:13.1]} 37. Re2 {[%clk
0:00:24.1]} 37... Rf4 {[%clk 0:00:05.9]} 38. Re6+ {[%clk 0:00:21]} 38... Kg7
{[%clk 0:00:05.8]} 39. Rg6+ {[%clk 0:00:19.1]} 39... Kf7 {[%clk 0:00:05.4]} 40.
Rxh6 {[%clk 0:00:17.8]} 40... Rf2 {[%clk 0:00:05.5]} 41. Kxg5 {[%clk 0:00:17.5]}
41... Rxa2 {[%clk 0:00:05.3]} 42. Rh7+ {[%clk 0:00:17.6]} 42... Kg8 {[%clk
0:00:05.1]} 43. Rxb7 {[%clk 0:00:17.1]} 43... a5 {[%clk 0:00:04.4]} 44. Kg6
{[%clk 0:00:16.6]} 44... Kf8 {[%clk 0:00:03]} 45. f6 {[%clk 0:00:16.7]} 45... a4
{[%clk 0:00:02.4]} 46. Rb8# {[%clk 0:00:16.3]} 1-0

[Event "*** SCC Grand Prix: Titled Tuesday Blitz"]
[Site "Chess.com"]
[Date "2020.10.06"]
[Round "9"]
[White "vladislavkovalev"]
[Black "Alexsur1981"]
[Result "0-1"]
[WhiteElo "2861"]
[BlackElo "2774"]
[TimeControl "180+1"]
[EndTime "11:46:49 PDT"]
[Termination "Alexsur1981 won on time"]

1. e4 {[%clk 0:03:00.9]} 1... c5 {[%clk 0:02:57.4]} 2. Nf3 {[%clk 0:03:00.9]}
2... e6 {[%clk 0:02:58]} 3. Nc3 {[%clk 0:03:00.9]} 3... Nc6 {[%clk 0:02:57.9]}
4. d4 {[%clk 0:03:01.3]} 4... cxd4 {[%clk 0:02:58.8]} 5. Nxd4 {[%clk 0:03:02.2]}
5... Nf6 {[%clk 0:02:59.3]} 6. Ndb5 {[%clk 0:03:01.2]} 6... Bc5 {[%clk
0:02:58.8]} 7. Bf4 {[%clk 0:02:56.9]} 7... O-O {[%clk 0:02:58.6]} 8. Bc7 {[%clk
0:02:50.1]} 8... Qe7 {[%clk 0:02:58.6]} 9. Bd6 {[%clk 0:02:50.1]} 9... Bxd6
{[%clk 0:02:59.2]} 10. Qxd6 {[%clk 0:02:50.8]} 10... Qd8 {[%clk 0:02:59.8]} 11.
O-O-O {[%clk 0:02:46.9]} 11... a6 {[%clk 0:02:59.1]} 12. Nd4 {[%clk 0:02:47.5]}
12... Qa5 {[%clk 0:02:47]} 13. Nb3 {[%clk 0:02:41.1]} 13... Qb6 {[%clk
0:02:46.1]} 14. f3 {[%clk 0:02:36.2]} 14... Ne8 {[%clk 0:02:43.9]} 15. Qg3
{[%clk 0:02:29.9]} 15... d6 {[%clk 0:02:41.7]} 16. h4 {[%clk 0:02:30.3]} 16...
Qc7 {[%clk 0:02:37]} 17. h5 {[%clk 0:02:29.5]} 17... h6 {[%clk 0:02:36.2]} 18.
Qf4 {[%clk 0:02:24.1]} 18... Qe7 {[%clk 0:02:24.4]} 19. Kb1 {[%clk 0:02:17.1]}
19... b5 {[%clk 0:02:21.9]} 20. g4 {[%clk 0:02:16.7]} 20... Bb7 {[%clk
0:02:20.6]} 21. Rg1 {[%clk 0:02:11.8]} 21... Qg5 {[%clk 0:02:17.6]} 22. Qg3
{[%clk 0:02:08.9]} 22... e5 {[%clk 0:02:13.3]} 23. Nd5 {[%clk 0:02:05.7]} 23...
Nf6 {[%clk 0:02:06.3]} 24. Nxf6+ {[%clk 0:01:26.4]} 24... Qxf6 {[%clk
0:02:07.2]} 25. g5 {[%clk 0:01:27.1]} 25... hxg5 {[%clk 0:02:05.5]} 26. Qxg5
{[%clk 0:01:28]} 26... Qxg5 {[%clk 0:02:03.6]} 27. Rxg5 {[%clk 0:01:28.9]} 27...
Rad8 {[%clk 0:02:03.4]} 28. Bh3 {[%clk 0:01:29.3]} 28... Kh8 {[%clk 0:01:53.2]}
29. Rg2 {[%clk 0:01:02.1]} 29... a5 {[%clk 0:01:38.3]} 30. c3 {[%clk 0:00:53.4]}
30... a4 {[%clk 0:01:37.9]} 31. Na1 {[%clk 0:00:53]} 31... b4 {[%clk 0:01:25.9]}
32. Rgd2 {[%clk 0:00:51.1]} 32... bxc3 {[%clk 0:01:25.9]} 33. bxc3 {[%clk
0:00:51.8]} 33... Rb8 {[%clk 0:01:26.1]} 34. Kc2 {[%clk 0:00:46.7]} 34... Bc8
{[%clk 0:01:26.2]} 35. Rxd6 {[%clk 0:00:41]} 35... Bxh3 {[%clk 0:01:24]} 36.
Rxc6 {[%clk 0:00:41.4]} 36... Bg2 {[%clk 0:01:19.6]} 37. Rd3 {[%clk 0:00:40.3]}
37... Rfd8 {[%clk 0:01:19.4]} 38. h6 {[%clk 0:00:18.1]} 38... Rxd3 {[%clk
0:01:12.2]} 39. Kxd3 {[%clk 0:00:19]} 39... Rb2 {[%clk 0:01:07.5]} 40. hxg7+
{[%clk 0:00:19]} 40... Kxg7 {[%clk 0:01:07]} 41. Nc2 {[%clk 0:00:18.4]} 41...
Rxa2 {[%clk 0:01:04.1]} 42. Ne3 {[%clk 0:00:17.6]} 42... Bxf3 {[%clk 0:01:01]}
43. Nf5+ {[%clk 0:00:17.8]} 43... Kh7 {[%clk 0:00:59.7]} 44. Rf6 {[%clk
0:00:15.1]} 44... Be2+ {[%clk 0:00:55]} 45. Ke3 {[%clk 0:00:15.2]} 45... Bc4
{[%clk 0:00:55.4]} 46. Nd6 {[%clk 0:00:14.3]} 46... Bb3 {[%clk 0:00:53.7]} 47.
Nf5 {[%clk 0:00:13.3]} 47... a3 {[%clk 0:00:52.1]} 48. Rh6+ {[%clk 0:00:13.7]}
48... Kg8 {[%clk 0:00:51.7]} 49. Ne7+ {[%clk 0:00:13.9]} 49... Kf8 {[%clk
0:00:47.6]} 50. Nf5 {[%clk 0:00:14.5]} 50... Ke8 {[%clk 0:00:43.8]} 51. Rb6
{[%clk 0:00:05.4]} 51... Rb2 {[%clk 0:00:42.4]} 52. Rb7 {[%clk 0:00:02]} 52...
a2 {[%clk 0:00:39.9]} 53. Re7+ {[%clk 0:00:02.1]} 53... Kd8 {[%clk 0:00:39.3]}
54. Ra7 {[%clk 0:00:03]} 54... Rb1 {[%clk 0:00:39.5]} 0-1

[Event "*** SCC Grand Prix: Titled Tuesday Blitz"]
[Site "Chess.com"]
[Date "2020.10.06"]
[Round "9"]
[White "Blagorod"]
[Black "Manukyan_Artak"]
[Result "1-0"]
[WhiteElo "2193"]
[BlackElo "2286"]
[TimeControl "180+1"]
[EndTime "11:46:49 PDT"]
[Termination "Blagorod won by resignation"]

1. e4 {[%clk 0:02:10.9]} 1... c6 {[%clk 0:02:58.2]} 2. d4 {[%clk 0:02:10.5]}
2... d5 {[%clk 0:02:59.1]} 3. exd5 {[%clk 0:02:10.4]} 3... cxd5 {[%clk
0:02:59.1]} 4. Bd3 {[%clk 0:02:11.1]} 4... Nc6 {[%clk 0:02:57.7]} 5. c3 {[%clk
0:02:11.2]} 5... e5 {[%clk 0:02:57.8]} 6. dxe5 {[%clk 0:02:09]} 6... Nxe5 {[%clk
0:02:58.7]} 7. Bb5+ {[%clk 0:02:08.9]} 7... Nc6 {[%clk 0:02:57.1]} 8. Ne2 {[%clk
0:02:06.3]} 8... Nf6 {[%clk 0:02:51.3]} 9. O-O {[%clk 0:02:06.1]} 9... Bd6
{[%clk 0:02:50]} 10. Bf4 {[%clk 0:02:04.4]} 10... O-O {[%clk 0:02:48.1]} 11. Nd2
{[%clk 0:01:59.6]} 11... Bg4 {[%clk 0:02:45.5]} 12. f3 {[%clk 0:01:58.9]} 12...
Bh5 {[%clk 0:02:43]} 13. Nb3 {[%clk 0:01:51.6]} 13... Bxf4 {[%clk 0:02:29.5]}
14. Nxf4 {[%clk 0:01:31.6]} 14... Qb6+ {[%clk 0:02:25.6]} 15. Nd4 {[%clk
0:01:32]} 15... Nxd4 {[%clk 0:02:25.5]} 16. Qxd4 {[%clk 0:01:28.7]} 16... Qxb5
{[%clk 0:02:25.1]} 17. Nxh5 {[%clk 0:01:25.9]} 17... Nxh5 {[%clk 0:02:26]} 18.
Rad1 {[%clk 0:01:23.3]} 18... Nf6 {[%clk 0:02:25.7]} 19. Qh4 {[%clk 0:01:21.9]}
19... Rac8 {[%clk 0:02:20.3]} 20. g4 {[%clk 0:01:19.5]} 20... h6 {[%clk
0:02:11.6]} 21. g5 {[%clk 0:01:17.1]} 21... hxg5 {[%clk 0:02:10.9]} 22. Qxg5
{[%clk 0:01:16.8]} 22... Qb6+ {[%clk 0:02:03.7]} 23. Kh1 {[%clk 0:01:14.7]}
23... g6 {[%clk 0:01:58]} 24. Rd4 {[%clk 0:01:05.5]} 24... Kg7 {[%clk
0:01:56.7]} 25. f4 {[%clk 0:01:00.9]} 25... Rc4 {[%clk 0:01:37]} 26. Rd3 {[%clk
0:00:54.6]} 26... Qe6 {[%clk 0:01:14.1]} 27. f5 {[%clk 0:00:32]} 27... Qe4+
{[%clk 0:01:02.8]} 28. Rdf3 {[%clk 0:00:32.2]} 28... Qg4 {[%clk 0:00:46.6]} 29.
Qe3 {[%clk 0:00:28.8]} 29... Re4 {[%clk 0:00:42.3]} 30. Qf2 {[%clk 0:00:22.6]}
30... g5 {[%clk 0:00:29.3]} 31. Rg1 {[%clk 0:00:20.4]} 31... Qh4 {[%clk
0:00:22.8]} 32. Rfg3 {[%clk 0:00:16]} 32... g4 {[%clk 0:00:20.3]} 33. Rxg4+
{[%clk 0:00:15.1]} 33... Rxg4 {[%clk 0:00:19.8]} 34. Qxh4 {[%clk 0:00:14.4]}
34... Rxg1+ {[%clk 0:00:19.9]} 35. Kxg1 {[%clk 0:00:14.7]} 35... Re8 {[%clk
0:00:20.5]} 36. Qg5+ {[%clk 0:00:14.7]} 36... Kh7 {[%clk 0:00:19.7]} 37. Qxf6
{[%clk 0:00:14.7]} 37... Rg8+ {[%clk 0:00:19.7]} 38. Kf2 {[%clk 0:00:14.2]}
38... Rg7 {[%clk 0:00:20.6]} 39. h4 {[%clk 0:00:13.1]} 39... Kg8 {[%clk
0:00:21.5]} 40. h5 {[%clk 0:00:13]} 40... d4 {[%clk 0:00:22]} 41. cxd4 {[%clk
0:00:12.4]} 41... Rg4 {[%clk 0:00:21.9]} 42. h6 {[%clk 0:00:11.7]} 42... Kh7
{[%clk 0:00:21.7]} 43. Kf3 {[%clk 0:00:11.6]} 43... Rg1 {[%clk 0:00:21]} 44.
Qxf7+ {[%clk 0:00:11.2]} 44... Kxh6 {[%clk 0:00:21.9]} 45. Qf6+ {[%clk
0:00:11.1]} 45... Kh5 {[%clk 0:00:22.1]} 46. Qh8+ {[%clk 0:00:11.2]} 46... Kg5
{[%clk 0:00:21.6]} 47. Qg8+ {[%clk 0:00:11.7]} 47... Kxf5 {[%clk 0:00:22.5]} 48.
Qxg1 {[%clk 0:00:12.2]} 1-0